bitfinex/quotes_ETHUSD_20220201
["timestamp","ask_amount","ask_price","bid_price","bid_amount"]
[1643688987411,3.67913148,2748.0,2747.1,0.40609952]
[1643688987633,2.25563348,2747.9,2747.1,0.40609952]
[1643688987813,0.1819,2747.8,2747.1,0.70609952]
[1643688988264,0.75520914,2747.4,2747.1,0.3]
[1643688988658,0.75520914,2747.4,2746.8,0.6]
[1643688988659,0.1819,2747.3,2746.8,0.6]
[1643688988859,0.1819,2747.3,2746.0,0.25]
[1643688989061,0.1819,2747.3,2746.2,3.5]
[1643688989460,0.1819,2747.3,2746.9,0.3967333]
[1643688989862,0.67798074,2747.4,2746.9,0.3967333]
[1643688990262,0.182,2747.6,2746.9,0.6967333]
[1643688990461,0.1819,2747.7,2746.9,0.6967333]
[1643688990661,0.1819,2748.0,2746.9,0.6967333]
[1643688990867,0.4319,2748.0,2747.6,0.34159869]
[1643688991061,0.4319,2748.0,2746.9,0.6967333]
[1643688991062,2.27732668,2747.9,2746.9,0.3]
[1643688991261,0.18123,2748.1,2746.8,0.1819]
[1643688991262,0.88903974,2747.8,2746.8,0.1819]
[1643688991460,0.88903974,2747.8,2746.5,0.1819]
[1643688991662,2.23938796,2747.7,2746.8,0.1819]
[1643688991864,2.23938796,2747.7,2746.5,0.1819]
[1643688991865,0.1819,2747.6,2746.5,0.1819]
[1643688992114,0.1819,2747.6,2746.6,0.35059224]
[1643688992316,0.1819,2748.1,2746.7,0.1819]
[1643688992517,0.1819,2747.5,2746.4,0.1819]
[1643688992718,0.25,2748.0,2746.4,0.1819]
[1643688993117,0.90998372,2747.7,2746.4,0.8672974]
[1643688993314,0.1819,2747.6,2747.5,0.33902973]
[1643688993718,0.1819,2748.1,2747.5,0.63902973]
[1643688994320,0.01206441,2747.9,2747.5,0.3]
[1643688994520,0.1819,2747.8,2746.8,0.3]
[1643688994718,0.1819,2747.8,2746.6,0.1819]
[1643688994921,0.1819,2748.1,2746.6,0.1819]
[1643688995217,0.4319,2748.1,2746.7,0.3]
[1643688995419,0.77896382,2747.9,2746.7,3.21125585]
[1643688995617,0.62085992,2747.8,2746.9,0.43593035]
[1643688995859,0.19415647,2747.7,2746.9,0.43593035]
[1643688996063,0.25,2747.5,2746.9,0.43593035]
[1643688996256,0.1819,2747.4,2746.9,0.43593035]
[1643688996655,1.01645197,2747.4,2746.9,0.43593035]
[1643688996858,0.83455197,2747.4,2746.9,0.43593035]
[1643688997059,0.83455197,2747.4,2746.9,0.73593035]
[1643688997259,0.83455197,2747.4,2746.9,0.53593035]
[1643688997460,0.83455197,2747.4,2746.9,0.43593035]
[1643688998665,0.1819,2747.3,2746.9,0.43593035]
[1643688998863,0.1819,2747.4,2747.0,0.1819]
[1643688999064,0.1819,2748.1,2747.0,2.30045669]
[1643688999299,0.1819,2748.1,2746.9,0.43593035]
[1643688999705,0.8130477,2748.0,2747.8,0.43283585]
[1643688999912,6.4319,2747.9,2746.5,2.89968878]
[1643689000107,6.4319,2747.9,2746.9,0.3]
[1643689000366,6.4319,2747.9,2746.6,1.0]
[1643689000367,6.4319,2747.9,2746.7,0.1819]
[1643689000514,0.1819,2747.9,2746.8,0.01237552]
[1643689000711,6.88539997,2748.6,2746.9,0.1819]
[1643689000712,0.1819,2748.5,2746.9,0.1819]
[1643689000914,1.71410083,2748.4,2746.9,0.1819]
[1643689001214,2.29635256,2748.3,2746.8,0.7319]
[1643689001610,0.90659988,2747.7,2747.2,0.40101586]
[1643689002009,0.90659988,2747.7,2747.2,0.70101586]
[1643689002211,0.90659988,2747.7,2746.4,0.11991586]
[1643689002813,0.90659988,2747.7,2747.3,0.34722905]
[1643689003034,2.28858627,2747.6,2746.1,1.4393689]
[1643689003269,2.28858627,2747.6,2746.1,1.3023689]
[1643689003270,2.47048627,2747.6,2746.1,1.3023689]
[1643689003557,2.47048627,2747.6,2746.1,0.3023689]
[1643689003763,9.56158627,2747.6,2745.8,0.3]
[1643689003962,9.56158627,2747.6,2746.8,0.36159031]
[1643689003963,18.71157395,2747.6,2746.8,0.36159031]
[1643689004261,8.421,2747.6,2746.8,0.66159031]
[1643689004464,7.273,2747.6,2746.8,0.66159031]
[1643689004663,0.67286747,2747.3,2746.8,0.66159031]
[1643689005860,0.67286747,2747.3,2746.8,0.3]
[1643689006269,0.1819,2747.2,2745.9,1.0]
[1643689006462,0.1819,2747.2,2746.2,0.6]
[1643689006693,0.89307511,2746.8,2745.9,3.33982498]
[1643689006865,0.1819,2747.2,2745.9,3.33982498]
[1643689007114,8.2645,2747.6,2746.0,0.437]
[1643689007317,8.2645,2747.6,2746.1,2.08563242]
[1643689007618,0.1819,2747.5,2746.1,2.68563242]
[1643689007816,1.05103321,2747.5,2747.1,0.44883352]
[1643689008040,0.1819,2747.5,2747.1,0.44883352]
[1643689008216,4.55,2747.4,2747.0,0.37479948]
[1643689008617,4.55,2747.4,2747.0,0.67479948]
[1643689009018,0.1819,2747.3,2747.0,0.67479948]
[1643689009421,4.55,2747.4,2747.0,0.67479948]
[1643689010022,4.55,2747.4,2746.3,0.3]
[1643689010222,2.65000374,2747.3,2746.1,1.6]
[1643689010419,2.65000374,2747.3,2746.3,0.3]
[1643689010618,2.65000374,2747.3,2746.1,0.6]
[1643689010861,2.65000374,2747.3,2745.6,7.5526]
[1643689011204,2.65000374,2747.3,2746.8,0.43595697]
[1643689011366,0.1819,2747.3,2746.8,0.43595697]
[1643689012065,4.4804,2747.6,2746.8,0.73595697]
[1643689012066,0.1819,2747.4,2746.8,0.73595697]
[1643689012308,0.1819,2747.5,2746.8,0.73595697]
[1643689012466,0.1819,2747.5,2746.8,1.03595697]
[1643689012664,0.1819,2747.5,2746.8,0.73595697]
[1643689012865,0.1819,2747.5,2747.3,0.35281837]
[1643689013264,3.8427,2747.9,2747.3,0.35281837]
[1643689013265,3.8427,2747.9,2747.3,0.65281837]
[1643689013467,1.4132,2748.0,2747.3,0.65281837]
[1643689013664,0.1819,2748.2,2747.3,0.65281837]
[1643689013868,0.51940883,2748.2,2747.3,0.3]
[1643689014066,0.51940883,2748.2,2746.8,0.6]
[1643689014067,0.84359944,2747.8,2746.8,0.6]
[1643689014368,0.84359944,2747.8,2746.7,0.3]
[1643689014369,0.1819,2747.7,2746.7,0.3]
[1643689014809,0.1819,2747.7,2746.4,0.0023689]
[1643689014810,0.1819,2747.7,2746.4,0.3]
[1643689015008,3.60693,2748.0,2746.4,2.07970742]
[1643689015207,3.60693,2748.0,2746.4,2.37970742]
[1643689015408,3.4257,2748.0,2746.4,2.37970742]
[1643689015610,3.4257,2748.0,2746.4,3.37970742]
[1643689015809,0.71006242,2746.9,2746.4,2.07970742]
[1643689016011,3.55693,2748.0,2746.3,0.4274521]
[1643689016012,0.1819,2746.8,2746.3,0.4274521]
[1643689016210,0.01257815,2747.6,2746.3,0.4274521]
[1643689016413,0.1819,2747.5,2746.3,0.4274521]
[1643689016811,0.1819,2747.5,2745.6,2.26889706]
[1643689016812,0.18123,2747.4,2745.6,2.26889706]
[1643689017011,0.01292073,2747.0,2745.6,2.07970742]
[1643689017214,0.1819,2746.9,2745.6,2.67970742]
[1643689017644,0.1819,2746.9,2745.7,1.0]
[1643689018463,0.75814033,2746.5,2746.2,0.37561943]
[1643689018700,0.75814033,2746.5,2745.6,2.07970742]
[1643689018865,0.75814033,2746.5,2745.3,2.07970742]
[1643689019264,0.75814033,2746.5,2745.2,2.26889706]
[1643689019470,0.75814033,2746.5,2745.1,2.26889706]
[1643689019668,0.1819,2746.7,2746.0,0.42050713]
[1643689019870,5.0279,2746.8,2746.0,0.42050713]
[1643689019871,5.2098,2746.8,2746.0,0.42050713]
[1643689020271,5.0279,2746.8,2746.0,0.3]
[1643689020669,5.0279,2746.8,2745.5,1.3]
[1643689020878,0.1819,2746.8,2746.5,0.32925844]
[1643689021271,3.2583,2746.9,2746.5,0.62925844]
[1643689024520,2.8933,2746.9,2746.5,0.62925844]
[1643689025757,0.1819,2747.4,2746.5,0.62925844]
[1643689026559,2.32237271,2747.4,2747.2,0.34545386]
[1643689026757,0.1819,2747.4,2747.2,0.34545386]
[1643689026962,0.1819,2747.4,2747.2,0.64545386]
[1643689027363,0.1819,2747.6,2747.2,0.64545386]
[1643689027563,0.1819,2747.7,2747.2,0.64545386]
[1643689027765,13.9278,2748.2,2747.2,0.64545386]
[1643689027766,0.1819,2747.9,2747.2,0.64545386]
[1643689027969,0.1819,2748.0,2747.2,0.64545386]
[1643689028166,0.68278972,2747.7,2747.2,0.64545386]
[1643689028366,0.68278972,2747.7,2747.2,0.3]
[1643689028568,0.1819,2747.6,2747.2,0.3]
[1643689028765,0.1819,2747.6,2746.5,1.437]
[1643689028964,0.1819,2747.6,2746.6,2.09609599]
[1643689029364,0.1819,2747.6,2747.3,0.3599546]
[1643689029616,0.1819,2747.6,2746.7,0.3]
[1643689030010,0.1819,2747.6,2746.7,2.37171978]
[1643689030210,0.1819,2747.6,2746.7,1.6]
[1643689030510,0.1819,2747.6,2746.7,1.3]
[1643689030721,0.1819,2747.6,2746.7,0.6]
[1643689031111,0.1819,2747.6,2746.7,1.3]
[1643689031311,0.1819,2747.6,2747.4,0.42360137]
[1643689031714,0.1819,2747.8,2747.4,0.42360137]
[1643689032124,0.1819,2748.0,2747.4,0.42360137]
[1643689032323,0.1819,2748.0,2747.4,0.72360137]
[1643689032723,0.1819,2748.2,2747.5,2.10108274]
[1643689032925,1.04096507,2748.6,2747.4,1.02360137]
[1643689032926,0.1819,2748.5,2747.4,1.02360137]
[1643689033120,1.5329103,2748.4,2747.4,1.54760137]
[1643689033357,0.1819,2748.5,2747.4,1.54760137]
[1643689033562,0.1819,2748.5,2747.4,1.124]
[1643689033758,0.1819,2748.5,2747.4,2.124]
[1643689034160,0.1819,2748.5,2747.7,0.90961]
[1643689034666,0.1819,2748.5,2748.1,0.41749813]
[1643689035669,0.1819,2748.5,2748.1,0.71749813]
[1643689035860,3.7973,2748.8,2748.1,0.71749813]
[1643689035861,0.1819,2748.7,2748.1,0.71749813]
[1643689036065,0.1819,2748.7,2748.1,1.01749813]
[1643689036264,0.1819,2748.9,2748.6,0.3495337]
[1643689036463,1.53279944,2748.8,2748.6,0.3495337]
[1643689036661,4.8819,2748.7,2748.6,0.3495337]
[1643689036861,4.8819,2748.7,2748.6,0.6495337]
[1643689037118,4.7,2748.7,2748.6,0.6495337]
[1643689037325,0.3495,2748.6,2747.3,0.774]
[1643689037520,0.3495,2748.6,2747.3,0.524]
[1643689037521,3.63386927,2748.5,2747.3,0.524]
[1643689037718,1.96468653,2748.4,2746.9,1.81939]
[1643689037922,1.96468653,2748.4,2746.9,0.524]
[1643689037923,0.01292624,2748.1,2746.9,0.524]
[1643689038117,0.1819,2748.0,2746.7,0.25]
[1643689038319,0.94811409,2748.0,2747.6,0.43476214]
[1643689038617,0.1819,2748.0,2747.6,0.43476214]
[1643689039018,1.203,2748.2,2747.6,0.43476214]
[1643689039221,1.203,2748.2,2747.6,1.03476214]
[1643689039418,0.1819,2748.3,2747.6,0.73476214]
[1643689039619,3.1291,2748.4,2747.6,1.03476214]
[1643689039822,3.1291,2748.4,2748.1,0.38098749]
[1643689040019,0.87056352,2748.5,2748.1,0.38098749]
[1643689040220,1.53298399,2748.4,2748.1,0.38098749]
[1643689040418,1.53298399,2748.4,2747.6,0.3]
[1643689040617,1.53298399,2748.4,2747.3,0.6]
[1643689040861,3.08130384,2748.5,2747.0,1.6]
[1643689041061,1.53298231,2748.4,2747.0,1.6]
[1643689041258,3.08130384,2748.5,2747.0,1.6]
[1643689041458,3.42558652,2748.5,2747.8,0.38579222]
[1643689041659,1.53298676,2748.4,2747.8,0.68579222]
[1643689042466,2.13116432,2748.3,2747.8,0.68579222]
[1643689042663,3.06933577,2748.5,2747.8,0.68579222]
[1643689042861,0.87056352,2748.5,2747.8,0.68579222]
[1643689043262,2.14906623,2748.4,2747.8,0.68579222]
[1643689043565,2.14906623,2748.4,2747.2,0.524]
[1643689043566,3.4066,2748.6,2748.3,0.35662434]
[1643689043765,0.3495,2748.6,2748.3,4.00560708]
[1643689043962,0.3495,2748.6,2748.3,1.90452434]
[1643689044211,0.27639994,2748.9,2748.4,1.0]
[1643689044363,1.4295,2749.5,2748.3,1.90452434]
[1643689044620,2.28742569,2749.4,2748.3,0.95662434]
[1643689044816,1.71437763,2749.3,2748.3,0.65662434]
[1643689045019,1.53267763,2749.2,2748.3,0.65662434]
[1643689045818,1.53126836,2749.2,2748.3,0.65662434]
[1643689046328,0.1817,2749.3,2748.3,0.65662434]
[1643689046329,0.76797386,2748.9,2748.3,0.65662434]
[1643689046522,1.4158,2749.3,2748.3,0.65662434]
[1643689048760,1.4158,2749.3,2748.3,0.3]
[1643689049162,1.4158,2749.3,2748.1,2.49179657]
[1643689049365,1.4158,2749.3,2748.1,0.6]
[1643689049562,1.4158,2749.3,2748.1,0.3]
[1643689049762,1.7997788,2749.3,2748.6,0.33741523]
[1643689050068,1.7998788,2749.3,2748.6,0.33741523]
[1643689050264,1.7998788,2749.3,2748.6,0.63741523]
[1643689050500,1.7998788,2749.3,2748.0,0.524]
[1643689051062,0.7328814,2748.9,2748.0,0.524]
[1643689051763,1.7998788,2749.3,2748.4,0.35394754]
[1643689052014,1.7998788,2749.3,2748.4,0.65394754]
[1643689052218,1.7998788,2749.3,2748.4,0.3]
[1643689052419,1.9811088,2749.3,2748.0,1.0]
[1643689052626,1.9811088,2749.3,2748.0,0.3]
[1643689052824,0.25,2749.2,2748.1,0.524]
[1643689053021,0.25,2749.2,2747.8,3.65806492]
[1643689053022,0.1,2747.9,2747.8,3.65806492]
[1643689053221,0.1,2747.9,2747.8,2.52031623]
[1643689053420,0.0969887,2747.9,2747.8,2.52031623]
[1643689053821,0.0969887,2747.9,2747.8,2.87682432]
[1643689054122,0.0969887,2747.9,2747.8,2.13840809]
[1643689054423,0.0969887,2747.9,2747.8,1.13840809]
[1643689054821,0.0969887,2747.9,2747.8,0.35650809]
[1643689056252,0.0969887,2747.9,2747.8,0.65650809]
[1643689059513,0.0969887,2747.9,2747.2,0.524]
[1643689059716,0.1819,2747.8,2746.9,0.1819]
[1643689059914,0.0969887,2747.9,2746.8,0.1819]
[1643689060112,0.0969887,2747.9,2746.4,1.09192]
[1643689060113,0.1819,2747.8,2746.4,1.09192]
[1643689060313,0.1819,2747.8,2746.8,0.31534528]
[1643689060314,0.40166389,2747.5,2746.8,0.31534528]
[1643689060818,0.40166389,2747.5,2746.4,2.69192]
[1643689061814,0.40166389,2747.5,2746.8,0.3883676]
[1643689062013,0.1819,2747.5,2746.8,0.3883676]
[1643689062223,0.1819,2747.5,2746.8,0.6883676]
[1643689062620,0.1819,2747.5,2746.8,0.4383676]
[1643689062820,0.1819,2747.5,2746.8,0.3883676]
[1643689063127,4.30197298,2747.6,2746.4,2.39058153]
[1643689063357,4.30197298,2747.6,2746.4,0.1819]
[1643689063358,6.49267362,2747.6,2746.4,0.1819]
[1643689063958,0.32264523,2746.5,2746.4,0.1819]
[1643689064159,0.18123,2747.5,2746.4,0.1819]
[1643689064367,0.1819,2747.4,2746.4,0.1819]
[1643689064560,0.25,2747.3,2746.4,0.1819]
[1643689064762,2.33765335,2747.2,2746.4,0.1819]
[1643689065064,2.29565841,2747.2,2746.4,0.1819]
[1643689065258,0.39468977,2746.8,2746.4,0.1819]
[1643689065660,0.77339014,2747.0,2746.0,1.7319]
[1643689065861,0.77339014,2747.0,2746.0,1.7819]
[1643689066257,1.3475,2747.2,2746.0,1.7819]
[1643689066659,0.3668264,2747.1,2746.4,0.44522282]
[1643689067112,0.3668264,2747.1,2746.4,0.74522282]
[1643689067312,2.48679434,2747.5,2746.4,0.74522282]
[1643689067313,0.8932643,2747.4,2746.5,0.524]
[1643689067512,0.7113643,2747.4,2746.6,0.1819]
[1643689068109,0.7113643,2747.4,2746.8,0.90994]
[1643689068313,0.7113643,2747.4,2746.8,1.50994]
[1643689068809,0.13819997,2747.5,2746.8,1.50994]
[1643689069430,8.2378,2747.6,2746.8,2.03394]
[1643689069910,8.2378,2747.6,2746.8,4.08462051]
[1643689070108,8.2378,2747.6,2746.9,1.0]
[1643689070310,8.2378,2747.6,2747.2,0.44626843]
[1643689070509,0.19438044,2747.8,2747.2,0.44626843]
[1643689070758,0.19438044,2747.8,2746.9,1.0]
[1643689070961,0.19438044,2747.8,2746.8,3.03394]
[1643689071158,0.19438044,2747.8,2746.8,2.03394]
[1643689071782,0.19438044,2747.8,2747.2,0.36062198]
[1643689071964,0.1819,2747.8,2746.8,2.03394]
[1643689072362,0.1819,2747.8,2746.8,4.11682507]
[1643689072763,0.1819,2747.8,2746.9,1.0]
[1643689072961,0.1819,2747.8,2747.0,0.90987]
[1643689073362,0.1819,2747.8,2747.0,1.20987]
[1643689073963,0.61666465,2747.8,2747.1,0.34561628]
[1643689074163,0.61666465,2747.8,2747.0,1.20987]
[1643689074366,0.61666465,2747.8,2747.0,0.3]
[1643689074631,0.61666465,2747.8,2746.9,1.3]
[1643689074832,0.61666465,2747.8,2746.8,1.124]
[1643689075031,0.61666465,2747.8,2746.8,0.824]
[1643689075234,0.61666465,2747.8,2746.8,1.124]
[1643689075431,0.1819,2747.8,2747.2,0.4057123]
[1643689076037,0.1819,2747.8,2746.8,2.124]
[1643689076633,0.1819,2747.8,2746.8,1.124]
[1643689076834,0.1819,2747.8,2746.8,2.124]
[1643689077065,0.1819,2747.8,2746.8,1.124]
[1643689077237,0.1819,2747.8,2746.8,2.124]
[1643689077437,0.41722533,2747.7,2747.0,0.4413325]
[1643689077637,0.41722533,2747.7,2747.0,0.7413325]
[1643689077837,0.1819,2747.8,2747.0,0.7413325]
[1643689078871,1.04093399,2747.9,2747.0,0.7413325]
[1643689079472,0.18123,2747.8,2747.0,0.4413325]
[1643689079667,0.36313,2747.8,2747.0,0.4413325]
[1643689079870,2.20921292,2747.7,2747.0,0.4413325]
[1643689080071,0.1819,2747.6,2746.6,0.1819]
[1643689080269,2.39111292,2747.7,2746.6,0.1819]
[1643689080868,0.75337918,2747.2,2746.6,0.1819]
[1643689081069,0.75337918,2747.2,2746.5,0.4819]
[1643689081268,3.59371292,2747.7,2746.9,0.39719355]
[1643689081672,3.59371292,2747.7,2746.9,0.69719355]
[1643689082032,3.59371292,2747.7,2746.5,0.1819]
[1643689082033,0.39291648,2747.5,2746.5,0.1819]
[1643689082438,0.39291648,2747.5,2746.7,3.5]
[1643689082636,0.7381084,2747.3,2746.7,3.8]
[1643689083239,0.7381084,2747.3,2746.8,1.0]
[1643689083839,0.7381084,2747.3,2746.8,1.44994196]
[1643689084043,0.7381084,2747.3,2746.7,3.5]
[1643689084243,2.2749973,2747.2,2746.4,3.5]
[1643689084439,0.01281234,2747.0,2745.8,0.1819]
[1643689084675,2.28780964,2747.0,2745.6,0.1819]
[1643689085237,2.28780964,2747.0,2745.3,0.1819]
[1643689085238,0.68084543,2746.5,2745.3,0.1819]
[1643689085440,0.68084543,2746.5,2745.3,2.30258]
[1643689085860,0.68084543,2746.5,2745.3,2.60258]
[1643689086259,0.68084543,2746.5,2745.4,1.3]
[1643689086461,2.84627209,2746.5,2745.8,0.34633199]
[1643689086665,0.68084543,2746.5,2745.8,0.64633199]
[1643689087269,0.6797937,2746.5,2745.8,0.64633199]
[1643689088269,2.0930973,2746.4,2745.5,0.4819]
[1643689088473,2.0930973,2746.4,2745.4,1.0]
[1643689088474,2.3430973,2746.4,2745.4,0.1819]
[1643689088669,0.1819,2746.3,2745.1,1.82085]
[1643689089070,0.6797937,2746.5,2745.1,1.72085]
[1643689089280,0.6797937,2746.5,2745.6,0.3586689]
[1643689089515,0.34194499,2746.2,2745.6,0.3586689]
[1643689090014,0.1819,2746.4,2745.6,0.3586689]
[1643689090215,0.6797937,2746.5,2745.6,0.6586689]
[1643689091220,0.44212142,2746.4,2745.6,0.6586689]
[1643689091425,0.62402142,2746.4,2745.6,0.6586689]
[1643689091623,0.62402142,2746.4,2745.6,0.3586689]
[1643689092627,0.1819,2747.0,2745.6,0.8826689]
[1643689092828,0.1819,2747.0,2745.7,0.1819]
[1643689093026,0.1819,2747.0,2745.8,0.824]
[1643689093264,0.1819,2747.0,2745.9,0.1819]
[1643689093565,0.87021508,2746.7,2746.2,0.38749915]
[1643689093968,0.87021508,2746.7,2745.9,0.1819]
[1643689094772,2.2789647,2746.6,2745.9,0.1819]
[1643689094974,0.91037,2746.5,2745.9,0.1819]
[1643689095171,0.42293115,2746.3,2745.9,0.1819]
[1643689095368,2.18813967,2746.2,2745.9,0.1819]
[1643689095570,6.0,2746.2,2745.9,0.1819]
[1643689095769,2.91643781,2746.1,2745.9,0.1819]
[1643689095966,2.91643781,2746.1,2745.0,0.1819]
[1643689095967,0.77954036,2746.1,2745.0,0.1819]
[1643689096167,0.77954036,2746.1,2745.0,3.6819]
[1643689096168,2.15119125,2746.0,2745.0,3.6819]
[1643689096367,2.15119125,2746.0,2745.0,0.1819]
[1643689097216,3.87094036,2746.1,2745.4,0.43342307]
[1643689097420,3.87094036,2746.1,2745.1,1.70554897]
[1643689097622,6.0,2746.2,2745.2,0.7061]
[1643689097819,6.0,2746.2,2745.2,2.17373953]
[1643689098018,2.0930973,2746.7,2745.2,2.17373953]
[1643689098019,3.0034873,2746.7,2745.2,1.7061]
[1643689098234,0.1819,2746.6,2745.2,0.7061]
[1643689098418,2.14728523,2746.6,2745.2,0.524]
[1643689098618,0.7624866,2745.8,2745.1,0.6]
[1643689098819,0.7624866,2745.8,2745.0,0.7819]
[1643689099018,0.7624866,2745.8,2745.0,0.4819]
[1643689099221,0.7624866,2745.8,2745.0,0.1819]
[1643689099821,0.7624866,2745.8,2745.2,0.35902227]
[1643689100219,0.7624866,2745.8,2745.2,0.65902227]
[1643689101377,0.7624866,2745.8,2745.2,0.3]
[1643689101977,0.7624866,2745.8,2744.9,0.3]
[1643689102181,0.7624866,2745.8,2744.7,1.4821]
[1643689102378,0.7624866,2745.8,2745.4,0.38550557]
[1643689104178,0.7624866,2745.8,2745.4,0.68550557]
[1643689104380,3.9003,2746.1,2745.4,0.68550557]
[1643689104617,3.7182,2746.1,2745.4,0.38550557]
[1643689104864,0.1819,2746.5,2746.4,0.33850255]
[1643689105027,0.1819,2746.6,2746.4,0.38939491]
[1643689105224,1.1307,2746.8,2746.4,0.38939491]
[1643689105225,0.1819,2746.7,2746.4,0.38939491]
[1643689105624,3.93728034,2746.5,2746.4,0.38939491]
[1643689105871,8.43728034,2746.5,2746.4,0.38939491]
[1643689106125,8.43728034,2746.5,2745.5,0.4819]
[1643689106623,8.43728034,2746.5,2746.1,0.42503435]
[1643689106825,4.5,2746.5,2746.1,0.72503435]
[1643689107227,4.5,2746.5,2746.1,1.02503435]
[1643689108876,4.5,2746.5,2746.1,1.54903435]
[1643689109672,4.5,2746.5,2746.2,2.08236668]
[1643689109876,3.9337,2747.7,2746.2,2.08236668]
[1643689109877,0.1819,2747.6,2746.3,0.524]
[1643689110131,1.53370755,2747.5,2746.3,0.524]
[1643689110277,1.53370755,2747.5,2746.3,1.824]
[1643689110673,1.53370755,2747.5,2747.2,0.41774417]
[1643689110875,0.70221938,2747.4,2747.2,0.3]
[1643689111273,0.1819,2747.6,2746.8,0.824]
[1643689111478,1.53365665,2747.5,2746.8,0.824]
[1643689111677,0.1819,2747.6,2746.8,0.824]
[1643689111876,0.1819,2747.6,2746.8,1.124]
[1643689112316,0.89348048,2747.5,2747.1,0.41806484]
[1643689112513,1.53370065,2747.4,2747.1,0.41806484]
[1643689112719,1.53370065,2747.4,2746.8,1.124]
[1643689113915,1.53370065,2747.4,2747.2,0.36716563]
[1643689114319,1.53370065,2747.4,2747.2,0.66716563]
[1643689115113,0.1819,2747.7,2747.2,0.66716563]
[1643689115321,1.53371345,2747.6,2747.2,0.66716563]
[1643689116566,0.85396185,2747.5,2747.2,0.3]
[1643689116766,1.53371345,2747.4,2746.8,0.824]
[1643689117569,0.85396185,2747.5,2746.8,0.824]
[1643689117769,1.53371308,2747.4,2747.0,0.35929649]
[1643689117975,1.4922887,2747.9,2747.0,0.65929649]
[1643689118170,1.53362042,2747.8,2747.0,0.65929649]
[1643689118373,0.1819,2747.7,2747.0,0.65929649]
[1643689118602,1.53362042,2747.6,2747.0,0.65929649]
[1643689118769,1.53362042,2747.5,2747.0,0.65929649]
[1643689118969,1.53362042,2747.7,2747.0,0.65929649]
[1643689119170,0.79315786,2747.7,2747.0,0.65929649]
[1643689119376,1.53362042,2747.6,2747.2,1.0]
[1643689119611,1.53362042,2747.6,2747.2,1.6]
[1643689122620,1.53362042,2747.6,2747.2,1.3]
[1643689122824,0.38566603,2747.5,2747.2,1.3]
[1643689123022,1.53362042,2747.4,2747.2,1.3]
[1643689123281,8.08362042,2747.3,2747.2,0.55]
[1643689123476,8.08362042,2747.3,2746.2,0.7059]
[1643689123677,1.71552042,2747.2,2746.0,0.1819]
[1643689123892,4.5,2746.8,2745.9,0.7059]
[1643689124080,4.5,2746.8,2745.7,0.1819]
[1643689124277,4.5,2746.8,2746.3,0.40272609]
[1643689124483,0.75841522,2746.6,2745.7,0.1819]
[1643689125678,0.75841522,2746.6,2746.1,0.35915953]
[1643689125883,0.75841522,2746.6,2746.1,0.65915953]
[1643689127025,0.75841522,2746.6,2745.7,1.1819]
[1643689127220,0.75841522,2746.6,2745.7,1.4819]
[1643689127423,0.75841522,2746.6,2745.7,1.1819]
[1643689127621,0.75841522,2746.6,2745.8,0.3]
[1643689128024,0.41969424,2746.3,2745.6,0.44015527]
[1643689128224,0.41969424,2746.3,2745.1,0.774]
[1643689128432,0.41969424,2746.3,2744.9,1.8208767]
[1643689128433,1.71639674,2746.2,2744.9,1.8208767]
[1643689128623,0.1821,2746.2,2744.9,1.8208767]
[1643689128823,0.73592494,2746.0,2744.9,1.8208767]
[1643689129024,0.73592494,2746.0,2745.1,0.91053]
[1643689129225,1.4147,2746.2,2745.4,0.40901324]
[1643689129425,1.4147,2746.2,2745.4,0.70901324]
[1643689129624,1.2326,2746.2,2745.4,1.00901324]
[1643689130423,1.4145,2746.2,2745.4,1.00901324]
[1643689131465,1.2326,2746.2,2745.4,1.00901324]
[1643689131664,1.2326,2746.2,2745.5,0.524]
[1643689132074,0.1819,2746.5,2746.3,0.41561033]
[1643689132372,0.1819,2746.6,2745.9,0.91027]
[1643689132571,0.42770578,2746.9,2745.9,2.99374224]
[1643689132771,0.42770578,2746.9,2746.0,1.524]
[1643689132974,0.42770578,2746.9,2746.0,1.824]
[1643689133175,0.42770578,2746.9,2746.0,1.124]
[1643689133508,0.73144988,2746.9,2746.0,2.124]
[1643689133882,0.73144988,2746.9,2746.0,1.124]
[1643689134073,0.73144988,2746.9,2746.0,2.124]
[1643689134274,0.73144988,2746.9,2746.0,1.124]
[1643689134580,1.53395889,2746.7,2746.0,1.124]
[1643689134760,1.53395889,2746.7,2746.4,0.41619945]
[1643689134960,1.53395889,2746.7,2746.0,1.124]
[1643689135767,0.1819,2746.6,2746.0,1.124]
[1643689136166,0.1819,2746.7,2746.0,1.50390703]
[1643689136372,0.93652039,2746.4,2746.0,1.50390703]
[1643689136770,0.93652039,2746.4,2746.0,1.124]
[1643689137167,0.93652039,2746.4,2746.0,0.3]
[1643689137369,1.53415706,2746.3,2746.0,0.3]
[1643689137570,0.1819,2746.2,2745.5,1.0]
[1643689137812,0.90598016,2745.8,2745.3,1.6477487]
[1643689137973,0.90598016,2745.8,2745.3,0.3477487]
[1643689138173,0.90598016,2745.8,2745.2,1.8208]
[1643689138478,0.1821,2746.4,2745.2,1.8208]
[1643689138668,1.53427458,2746.3,2745.2,1.8208]
[1643689138876,0.1819,2746.2,2745.2,1.8208]
[1643689139273,0.43732667,2746.0,2745.2,2.4208]
[1643689139480,0.82283602,2745.8,2745.0,0.1819]
[1643689140573,0.82283602,2745.8,2745.2,0.34981575]
[1643689140772,0.82283602,2745.8,2745.2,0.64981575]
[1643689141176,0.1821,2745.9,2745.2,0.64981575]
[1643689141379,6.8926,2746.2,2745.3,2.07159944]
[1643689141573,6.8926,2746.2,2745.2,0.64981575]
[1643689141875,6.8926,2746.2,2745.2,1.64981575]
[1643689142122,6.8926,2746.2,2745.2,1.94981575]
[1643689142324,3.8583,2746.2,2745.8,0.40938311]
[1643689142526,12.5803,2746.7,2745.8,1.23338311]
[1643689142824,8.1239,2746.7,2745.8,1.53338311]
[1643689143224,8.1239,2746.7,2745.8,1.00938311]
[1643689143428,1.27066763,2746.4,2745.8,1.00938311]
[1643689144033,0.82487614,2746.4,2745.8,1.00938311]
[1643689144426,0.82487614,2746.4,2745.8,0.70938311]
[1643689144625,0.82487614,2746.4,2745.8,1.00938311]